[Event "GrandPrix_29.05"]
[Site "Chess.com"]
[Date "2020.05.29"]
[Round "8"]
[White "DinaBelenkaya"]
[Black "AliKa2810"]
[Result "0-1"]
[WhiteElo "1596"]
[BlackElo "2139"]
[TimeControl "600+2"]
[EndTime "13:03:28 PDT"]
[Termination "AliKa2810 won on time"]

1. e4 {[%clk 0:10:01.9]} 1... e5 {[%clk 0:10:00.8]} 2. Nf3 {[%clk 0:10:00.6]}
2... Nf6 {[%clk 0:10:01.9]} 3. Nc3 {[%clk 0:09:58.2]} 3... Nc6 {[%clk
0:10:02.5]} 4. d4 {[%clk 0:09:59.1]} 4... exd4 {[%clk 0:10:03.6]} 5. Nxd4 {[%clk
0:09:59.9]} 5... Bb4 {[%clk 0:10:05.1]} 6. Nxc6 {[%clk 0:09:59]} 6... bxc6
{[%clk 0:10:06.4]} 7. Bd3 {[%clk 0:10:00.9]} 7... O-O {[%clk 0:10:07.7]} 8. O-O
{[%clk 0:10:00.5]} 8... d5 {[%clk 0:10:09.1]} 9. exd5 {[%clk 0:10:00.6]} 9...
cxd5 {[%clk 0:10:10.1]} 10. Bg5 {[%clk 0:09:58.6]} 10... c6 {[%clk 0:10:08.2]}
11. Qf3 {[%clk 0:09:59]} 11... Be7 {[%clk 0:10:02.8]} 12. h3 {[%clk 0:09:59.5]}
12... h6 {[%clk 0:09:57.4]} 13. Bf4 {[%clk 0:09:59.6]} 13... Bd6 {[%clk
0:09:54.4]} 14. Rfe1 {[%clk 0:09:19]} 14... Rb8 {[%clk 0:09:51.2]} 15. b3 {[%clk
0:09:02.2]} 15... Be6 {[%clk 0:09:50.7]} 16. Ne2 {[%clk 0:08:47.3]} 16... Re8
{[%clk 0:09:50.8]} 17. Rad1 {[%clk 0:08:09.7]} 17... c5 {[%clk 0:09:37.6]} 18.
c4 {[%clk 0:07:48]} 18... d4 {[%clk 0:09:37.8]} 19. Ng3 {[%clk 0:07:42.8]} 19...
Bxf4 {[%clk 0:08:01.7]} 20. Qxf4 {[%clk 0:07:42.7]} 20... a5 {[%clk 0:08:02.6]}
21. Re5 {[%clk 0:06:51.9]} 21... Nd7 {[%clk 0:07:16.8]} 22. Re2 {[%clk
0:06:47.2]} 22... a4 {[%clk 0:06:53.7]} 23. Bc2 {[%clk 0:06:46.6]} 23... Nf6
{[%clk 0:06:45.2]} 24. Ne4 {[%clk 0:04:25.2]} 24... Nxe4 {[%clk 0:06:20.8]} 25.
Qxe4 {[%clk 0:04:26.6]} 25... axb3 {[%clk 0:06:20.2]} 26. Qh7+ {[%clk
0:04:17.6]} 26... Kf8 {[%clk 0:06:20.5]} 27. Bxb3 {[%clk 0:03:46.9]} 27... Qf6
{[%clk 0:06:13.9]} 28. Ba4 {[%clk 0:03:43.9]} 28... Red8 {[%clk 0:06:11.4]} 29.
Bb5 {[%clk 0:03:37.1]} 29... g5 {[%clk 0:05:32]} 30. Qe4 {[%clk 0:02:44.8]}
30... Ra8 {[%clk 0:04:37.1]} 31. a4 {[%clk 0:02:36.2]} 31... Bf5 {[%clk
0:04:36.6]} 32. Qf3 {[%clk 0:02:29.5]} 32... Kg7 {[%clk 0:04:28.5]} 33. Ra2
{[%clk 0:02:08.1]} 33... Ra5 {[%clk 0:02:53.5]} 34. Qb7 {[%clk 0:01:58.3]} 34...
Qd6 {[%clk 0:02:36.4]} 35. Re2 {[%clk 0:01:30.5]} 35... h5 {[%clk 0:02:29.8]}
36. Re7 {[%clk 0:01:28.4]} 36... Bg6 {[%clk 0:02:29.8]} 37. Rc7 {[%clk 0:01:05]}
37... g4 {[%clk 0:02:08.8]} 38. h4 {[%clk 0:00:52.6]} 38... Qf6 {[%clk 0:02:05]}
39. Rxc5 {[%clk 0:00:48.3]} 39... Qxh4 {[%clk 0:02:00.4]} 40. Rd5 {[%clk
0:00:42]} 40... Be4 {[%clk 0:01:28.4]} 41. Qb6 {[%clk 0:00:29]} 41... Bxd5
{[%clk 0:01:26.2]} 42. Qxa5 {[%clk 0:00:26.8]} 42... Bxg2 {[%clk 0:01:18.1]} 43.
Kxg2 {[%clk 0:00:19.9]} 43... Qh3+ {[%clk 0:01:19.4]} 44. Kg1 {[%clk 0:00:21.5]}
44... g3 {[%clk 0:01:20.8]} 45. fxg3 {[%clk 0:00:13.1]} 45... Qxg3+ {[%clk
0:01:20.9]} 46. Kh1 {[%clk 0:00:09.4]} 46... Qh3+ {[%clk 0:01:14.6]} 47. Kg1
{[%clk 0:00:10.1]} 47... Rd6 {[%clk 0:01:15.4]} 0-1

[Event "GrandPrix_29.05"]
[Site "Chess.com"]
[Date "2020.05.29"]
[Round "8"]
[White "swisspower96"]
[Black "NikolaGry"]
[Result "1-0"]
[WhiteElo "2340"]
[BlackElo "2077"]
[TimeControl "600+2"]
[EndTime "13:03:30 PDT"]
[Termination "swisspower96 won on time"]

1. d4 {[%clk 0:10:01.9]} 1... d5 {[%clk 0:09:56.2]} 2. c4 {[%clk 0:10:01.7]}
2... Nc6 {[%clk 0:09:55.8]} 3. Nc3 {[%clk 0:10:00.3]} 3... dxc4 {[%clk
0:09:52.1]} 4. d5 {[%clk 0:09:42.2]} 4... Ne5 {[%clk 0:09:51.7]} 5. Bf4 {[%clk
0:09:22.9]} 5... Ng6 {[%clk 0:09:50.9]} 6. Bg3 {[%clk 0:09:23.6]} 6... e5 {[%clk
0:09:49.7]} 7. e4 {[%clk 0:09:14.3]} 7... Bd6 {[%clk 0:09:34]} 8. Bxc4 {[%clk
0:09:09.9]} 8... a6 {[%clk 0:09:33]} 9. Nf3 {[%clk 0:08:17.3]} 9... Nf6 {[%clk
0:09:30]} 10. h4 {[%clk 0:08:08.4]} 10... Bg4 {[%clk 0:09:14.4]} 11. Qb3 {[%clk
0:07:45.7]} 11... Bxf3 {[%clk 0:08:49]} 12. gxf3 {[%clk 0:07:45.1]} 12... b5
{[%clk 0:08:49.3]} 13. Bf1 {[%clk 0:07:41.1]} 13... Nh5 {[%clk 0:08:30.3]} 14.
a4 {[%clk 0:07:40.9]} 14... O-O {[%clk 0:07:51.1]} 15. Bh3 {[%clk 0:06:47.4]}
15... Ngf4 {[%clk 0:07:23.6]} 16. Bg4 {[%clk 0:06:32.1]} 16... bxa4 {[%clk
0:05:45.7]} 17. Qxa4 {[%clk 0:06:14.4]} 17... Rb8 {[%clk 0:05:23.6]} 18. Ra2
{[%clk 0:05:15.9]} 18... Rb6 {[%clk 0:03:58.4]} 19. Qc2 {[%clk 0:04:54.4]} 19...
Qb8 {[%clk 0:03:42.8]} 20. Nd1 {[%clk 0:04:47.4]} 20... Rb3 {[%clk 0:02:54.5]}
21. O-O {[%clk 0:04:23.7]} 21... Qb6 {[%clk 0:02:20.9]} 22. Bxh5 {[%clk
0:02:56.3]} 22... Nxh5 {[%clk 0:02:15.9]} 23. Kg2 {[%clk 0:02:57.7]} 23... Rb8
{[%clk 0:02:12]} 24. Ne3 {[%clk 0:02:31.1]} 24... Rxb2 {[%clk 0:01:13.9]} 25.
Rxb2 {[%clk 0:02:30.9]} 25... Qxb2 {[%clk 0:01:13.5]} 26. Qxb2 {[%clk
0:02:32.8]} 26... Rxb2 {[%clk 0:01:13.4]} 27. Ra1 {[%clk 0:02:34.6]} 27... Nxg3
{[%clk 0:00:56.5]} 28. Kxg3 {[%clk 0:02:34.2]} 28... g6 {[%clk 0:00:56.3]} 29.
Rxa6 {[%clk 0:02:29.4]} 29... Bb4 {[%clk 0:00:33.6]} 30. h5 {[%clk 0:02:18.1]}
30... Be1 {[%clk 0:00:20.4]} 31. Ng4 {[%clk 0:02:18.2]} 31... gxh5 {[%clk
0:00:19.7]} 32. Nh6+ {[%clk 0:02:11.5]} 32... Kf8 {[%clk 0:00:17.1]} 33. Ra8+
{[%clk 0:01:35.7]} 33... Ke7 {[%clk 0:00:15.9]} 34. Nf5+ {[%clk 0:01:36.4]}
34... Kd7 {[%clk 0:00:17]} 35. Rf8 {[%clk 0:01:34.9]} 35... Rxf2 {[%clk
0:00:12.6]} 36. Rxf7+ {[%clk 0:01:34.7]} 36... Kc8 {[%clk 0:00:13.5]} 37. Rxh7
{[%clk 0:01:32.6]} 37... h4+ {[%clk 0:00:13.6]} 38. Nxh4 {[%clk 0:01:10.2]}
38... Rf1+ {[%clk 0:00:12.4]} 39. Kg4 {[%clk 0:01:10]} 39... Kb7 {[%clk
0:00:09.3]} 40. Ng6 {[%clk 0:01:08.5]} 40... Bc3 {[%clk 0:00:09.2]} 41. d6
{[%clk 0:01:09.5]} 41... Rg1+ {[%clk 0:00:09.2]} 42. Kf5 {[%clk 0:01:10.4]}
42... Ba5 {[%clk 0:00:08.9]} 43. Nxe5 {[%clk 0:01:06.2]} 43... Rd1 {[%clk
0:00:05.4]} 44. Nc4 {[%clk 0:01:00]} 1-0

[Event "GrandPrix_29.05"]
[Site "Chess.com"]
[Date "2020.05.29"]
[Round "8"]
[White "kotmizer"]
[Black "haddinibilbaoo"]
[Result "1-0"]
[WhiteElo "2277"]
[BlackElo "2134"]
[TimeControl "600+2"]
[EndTime "13:03:30 PDT"]
[Termination "kotmizer won by resignation"]

1. e4 {[%clk 0:10:01.9]} 1... c5 {[%clk 0:09:59.2]} 2. Nf3 {[%clk 0:10:02.1]}
2... Nc6 {[%clk 0:09:59.9]} 3. Nc3 {[%clk 0:10:01.6]} 3... e6 {[%clk 0:09:54.6]}
4. d4 {[%clk 0:10:01.9]} 4... cxd4 {[%clk 0:09:55.9]} 5. Nxd4 {[%clk 0:10:03.1]}
5... Qc7 {[%clk 0:09:57.5]} 6. Ndb5 {[%clk 0:10:03]} 6... Qb8 {[%clk 0:09:58.3]}
7. f4 {[%clk 0:10:03.9]} 7... a6 {[%clk 0:09:56]} 8. Nd4 {[%clk 0:10:03.7]} 8...
Bc5 {[%clk 0:09:47.4]} 9. Nb3 {[%clk 0:10:02.9]} 9... Ba7 {[%clk 0:09:47.6]} 10.
Qg4 {[%clk 0:10:01.6]} 10... g6 {[%clk 0:09:31.2]} 11. Bd2 {[%clk 0:10:01]}
11... b5 {[%clk 0:09:28.3]} 12. O-O-O {[%clk 0:09:59.3]} 12... Nf6 {[%clk
0:09:18.1]} 13. Qh4 {[%clk 0:09:58.8]} 13... Ng8 {[%clk 0:08:36.4]} 14. Bd3
{[%clk 0:09:11.6]} 14... Bb7 {[%clk 0:08:11]} 15. Rhe1 {[%clk 0:09:04.5]} 15...
Nb4 {[%clk 0:08:08.9]} 16. Kb1 {[%clk 0:08:55.8]} 16... Nxd3 {[%clk 0:08:09.3]}
17. cxd3 {[%clk 0:08:56]} 17... Qd6 {[%clk 0:08:01]} 18. Be3 {[%clk 0:08:31.5]}
18... Bxe3 {[%clk 0:08:00.6]} 19. Rxe3 {[%clk 0:08:32.1]} 19... Qe7 {[%clk
0:07:59.5]} 20. Qf2 {[%clk 0:08:28.3]} 20... Nf6 {[%clk 0:07:44.7]} 21. Rh3
{[%clk 0:08:26.9]} 21... d5 {[%clk 0:07:21.2]} 22. Nc5 {[%clk 0:07:13.1]} 22...
Rc8 {[%clk 0:07:01.9]} 23. Nxb7 {[%clk 0:07:10.2]} 23... Qxb7 {[%clk 0:07:03.8]}
24. Qd4 {[%clk 0:07:10.4]} 24... Ke7 {[%clk 0:06:49.8]} 25. e5 {[%clk
0:06:55.2]} 25... Nd7 {[%clk 0:06:49.7]} 26. f5 {[%clk 0:06:48]} 26... gxf5
{[%clk 0:06:44.3]} 27. Qh4+ {[%clk 0:06:47.2]} 27... Ke8 {[%clk 0:06:42.7]} 28.
d4 {[%clk 0:06:10.3]} 28... b4 {[%clk 0:05:52.5]} 29. Ne2 {[%clk 0:06:09.2]}
29... Qb5 {[%clk 0:05:34.2]} 30. Qh5 {[%clk 0:06:05.7]} 30... Rg8 {[%clk
0:05:13.8]} 31. Qf3 {[%clk 0:05:59.5]} 31... Nb6 {[%clk 0:04:46.6]} 32. Rxh7
{[%clk 0:05:49.7]} 32... Na4 {[%clk 0:04:39.8]} 33. Qh5 {[%clk 0:05:09]} 33...
Rf8 {[%clk 0:04:39.7]} 34. Rh8 {[%clk 0:01:03.3]} 34... Nc3+ {[%clk 0:03:14.8]}
35. bxc3 {[%clk 0:00:18]} 35... bxc3+ {[%clk 0:03:15.8]} 36. Kc2 {[%clk
0:00:19.5]} 36... Qa4+ {[%clk 0:03:09.2]} 37. Kc1 {[%clk 0:00:20.3]} 37... Qa3+
{[%clk 0:02:52.5]} 38. Kc2 {[%clk 0:00:20.5]} 38... Qxa2+ {[%clk 0:02:53.7]} 39.
Kd3 {[%clk 0:00:21.6]} 39... c2 {[%clk 0:02:41.9]} 40. Rxf8+ {[%clk 0:00:21.6]}
40... Kxf8 {[%clk 0:02:43.8]} 41. Rc1 {[%clk 0:00:22.9]} 41... Qa3+ {[%clk
0:02:09.3]} 42. Kd2 {[%clk 0:00:23.6]} 42... Qb4+ {[%clk 0:02:10.1]} 43. Ke3
{[%clk 0:00:24.6]} 43... f4+ {[%clk 0:01:03.8]} 44. Kf2 {[%clk 0:00:24.2]} 44...
Qc3 {[%clk 0:00:54]} 45. Qh6+ {[%clk 0:00:23.9]} 45... Ke8 {[%clk 0:00:52.9]}
46. Nxc3 {[%clk 0:00:24.7]} 1-0

[Event "GrandPrix_29.05"]
[Site "Chess.com"]
[Date "2020.05.29"]
[Round "8"]
[White "ploky25"]
[Black "LuckyLuka04"]
[Result "1-0"]
[WhiteElo "2142"]
[BlackElo "2134"]
[TimeControl "600+2"]
[EndTime "13:03:33 PDT"]
[Termination "ploky25 won by resignation"]

1. d4 {[%clk 0:09:59.6]} 1... Nf6 {[%clk 0:09:59.8]} 2. c4 {[%clk 0:09:59.8]}
2... a6 {[%clk 0:10:00.9]} 3. Nc3 {[%clk 0:09:58.6]} 3... c5 {[%clk 0:10:02.2]}
4. d5 {[%clk 0:09:53.6]} 4... b5 {[%clk 0:10:03.4]} 5. cxb5 {[%clk 0:09:54.5]}
5... axb5 {[%clk 0:10:05]} 6. Nxb5 {[%clk 0:09:55.2]} 6... Qa5+ {[%clk
0:10:06.1]} 7. Nc3 {[%clk 0:09:55.2]} 7... Bb7 {[%clk 0:10:07.7]} 8. Bd2 {[%clk
0:09:52.5]} 8... Qb6 {[%clk 0:10:07.9]} 9. e4 {[%clk 0:09:51.4]} 9... e6 {[%clk
0:10:08.9]} 10. Nf3 {[%clk 0:09:25.5]} 10... exd5 {[%clk 0:10:06.1]} 11. exd5
{[%clk 0:09:25.5]} 11... Nxd5 {[%clk 0:10:06.4]} 12. Bc4 {[%clk 0:09:22.9]}
12... Qe6+ {[%clk 0:09:24.9]} 13. Ne2 {[%clk 0:09:20.4]} 13... Ba6 {[%clk
0:08:09.5]} 14. Ng5 {[%clk 0:08:34]} 14... Qc6 {[%clk 0:07:29.8]} 15. Bxd5
{[%clk 0:08:11.2]} 15... Qxd5 {[%clk 0:07:31.7]} 16. O-O {[%clk 0:08:11.1]}
16... Be7 {[%clk 0:06:43.4]} 17. Nc3 {[%clk 0:08:07.9]} 17... Qf5 {[%clk
0:06:24.8]} 18. Re1 {[%clk 0:07:53.1]} 18... Nc6 {[%clk 0:06:21.2]} 19. g4
{[%clk 0:07:41.5]} 19... Qd3 {[%clk 0:05:58.6]} 20. Re3 {[%clk 0:07:13.8]} 20...
Qd4 {[%clk 0:04:30.2]} 21. Re4 {[%clk 0:07:08.1]} 21... Qd3 {[%clk 0:04:18.5]}
22. Qe1 {[%clk 0:05:51.3]} 22... O-O {[%clk 0:03:10]} 23. Rd1 {[%clk 0:05:50.2]}
23... Bxg5 {[%clk 0:02:33.1]} 24. Bxg5 {[%clk 0:05:48.7]} 24... Qh3 {[%clk
0:02:33.3]} 25. Re3 {[%clk 0:05:00.3]} 25... Qxg4+ {[%clk 0:02:26.5]} 26. Rg3
{[%clk 0:05:00.8]} 26... Qe6 {[%clk 0:01:49.9]} 27. Qxe6 {[%clk 0:04:54.1]}
27... fxe6 {[%clk 0:01:30.2]} 28. Rxd7 {[%clk 0:04:52.9]} 28... Ne5 {[%clk
0:01:16.8]} 29. Rc7 {[%clk 0:04:45.6]} 29... Rf7 {[%clk 0:00:42.2]} 30. Rxf7
{[%clk 0:04:41.9]} 30... Kxf7 {[%clk 0:00:39.9]} 31. Ne4 {[%clk 0:04:33.6]}
31... Kg8 {[%clk 0:00:27.5]} 32. Nxc5 {[%clk 0:04:23.4]} 32... Bc4 {[%clk
0:00:25.3]} 33. a4 {[%clk 0:03:31.5]} 33... Bd5 {[%clk 0:00:20.3]} 34. f4 {[%clk
0:02:45.4]} 34... Nf3+ {[%clk 0:00:16.8]} 35. Kf2 {[%clk 0:02:45.6]} 35... Nd2
{[%clk 0:00:06.5]} 36. Bf6 {[%clk 0:02:37.9]} 36... g6 {[%clk 0:00:04.1]} 37.
Bc3 {[%clk 0:02:25.2]} 37... Ne4+ {[%clk 0:00:05.2]} 38. Nxe4 {[%clk 0:02:25.3]}
38... Bxe4 {[%clk 0:00:07.1]} 39. a5 {[%clk 0:02:25.5]} 39... Bd5 {[%clk
0:00:03.4]} 40. Rd3 {[%clk 0:02:13.4]} 40... Kf7 {[%clk 0:00:02.6]} 41. Ke3
{[%clk 0:02:09.2]} 41... Ke7 {[%clk 0:00:04]} 42. b4 {[%clk 0:02:04.2]} 42...
Rc8 {[%clk 0:00:05.3]} 43. b5 {[%clk 0:01:44.9]} 43... Bc4 {[%clk 0:00:06.6]}
44. Bb4+ {[%clk 0:01:41.8]} 44... Ke8 {[%clk 0:00:07.7]} 45. Rc3 {[%clk
0:01:40.6]} 45... Kd7 {[%clk 0:00:08.9]} 46. b6 {[%clk 0:01:39.3]} 46... Ba6
{[%clk 0:00:10.5]} 47. Rxc8 {[%clk 0:01:32.1]} 47... Bxc8 {[%clk 0:00:12.4]} 48.
Kd4 {[%clk 0:01:32]} 48... h6 {[%clk 0:00:12.7]} 49. h4 {[%clk 0:01:29.3]} 49...
Bb7 {[%clk 0:00:04.3]} 50. Ke5 {[%clk 0:01:29.7]} 50... g5 {[%clk 0:00:03]} 51.
fxg5 {[%clk 0:01:28.9]} 51... hxg5 {[%clk 0:00:04.9]} 52. hxg5 {[%clk
0:01:29.7]} 52... Ke8 {[%clk 0:00:06.8]} 53. Kxe6 {[%clk 0:01:29.5]} 53... Bc8+
{[%clk 0:00:08.4]} 54. Kd6 {[%clk 0:01:30.2]} 1-0

[Event "GrandPrix_29.05"]
[Site "Chess.com"]
[Date "2020.05.29"]
[Round "8"]
[White "Happy1712Drummer"]
[Black "khekhm"]
[Result "0-1"]
[WhiteElo "2205"]
[BlackElo "2416"]
[TimeControl "600+2"]
[EndTime "13:03:37 PDT"]
[Termination "khekhm won by resignation"]

1. d4 {[%clk 0:10:00.6]} 1... Nf6 {[%clk 0:09:58]} 2. Nf3 {[%clk 0:10:00.4]}
2... g6 {[%clk 0:09:58.9]} 3. c3 {[%clk 0:09:54.3]} 3... Bg7 {[%clk 0:09:59.4]}
4. Bf4 {[%clk 0:09:55]} 4... O-O {[%clk 0:10:00.1]} 5. h3 {[%clk 0:09:55.7]}
5... d6 {[%clk 0:10:01.3]} 6. Nbd2 {[%clk 0:09:55.8]} 6... Nbd7 {[%clk
0:09:56.3]} 7. e3 {[%clk 0:09:41.6]} 7... b6 {[%clk 0:09:55.8]} 8. Bh2 {[%clk
0:09:34.9]} 8... Bb7 {[%clk 0:09:56.8]} 9. a4 {[%clk 0:09:33.3]} 9... a5 {[%clk
0:09:57]} 10. Bb5 {[%clk 0:09:27.6]} 10... e6 {[%clk 0:09:55.1]} 11. O-O {[%clk
0:09:25.8]} 11... Qe7 {[%clk 0:09:55.8]} 12. Re1 {[%clk 0:09:23.7]} 12... e5
{[%clk 0:09:47]} 13. e4 {[%clk 0:09:08]} 13... Rad8 {[%clk 0:09:38.9]} 14. d5
{[%clk 0:08:57.9]} 14... Nh5 {[%clk 0:09:31.9]} 15. b4 {[%clk 0:08:48.1]} 15...
f5 {[%clk 0:09:28.4]} 16. bxa5 {[%clk 0:08:41]} 16... bxa5 {[%clk 0:09:30.3]}
17. Nc4 {[%clk 0:08:19.5]} 17... fxe4 {[%clk 0:09:22.4]} 18. Nxa5 {[%clk
0:07:30.1]} 18... Ba8 {[%clk 0:09:12.9]} 19. Nd2 {[%clk 0:07:05.2]} 19... Nc5
{[%clk 0:08:52.2]} 20. Nxe4 {[%clk 0:06:50.7]} 20... Nxe4 {[%clk 0:08:51.7]} 21.
Rxe4 {[%clk 0:06:52.6]} 21... Nf6 {[%clk 0:08:52.6]} 22. Re1 {[%clk 0:06:32.1]}
22... Nxd5 {[%clk 0:08:25]} 23. Nc6 {[%clk 0:05:47.4]} 23... Qf7 {[%clk
0:08:25.2]} 24. Qd2 {[%clk 0:04:12.8]} 24... Rde8 {[%clk 0:06:52.6]} 25. Bg3
{[%clk 0:03:50]} 25... e4 {[%clk 0:06:35.6]} 26. Nd4 {[%clk 0:03:19.6]} 26...
Re7 {[%clk 0:06:30]} 27. Nc6 {[%clk 0:03:02.3]} 27... Bxc6 {[%clk 0:03:16.6]}
28. Bxc6 {[%clk 0:03:01.4]} 28... Nxc3 {[%clk 0:03:17.4]} 29. Ra3 {[%clk
0:03:01.1]} 29... Qc4 {[%clk 0:03:09.9]} 30. Rxc3 {[%clk 0:00:57.6]} 30... Qxc3
{[%clk 0:03:08]} 31. Qd5+ {[%clk 0:00:50.3]} 31... Kh8 {[%clk 0:03:04.9]} 32.
Rxe4 {[%clk 0:00:31.6]} 32... Rxe4 {[%clk 0:03:02.4]} 33. Qxe4 {[%clk
0:00:31.8]} 33... Be5 {[%clk 0:02:31.7]} 34. Bxe5+ {[%clk 0:00:09.5]} 34... dxe5
{[%clk 0:02:32.8]} 35. g3 {[%clk 0:00:08.8]} 35... Rf6 {[%clk 0:02:16.3]} 36.
Bd5 {[%clk 0:00:03.6]} 36... Kg7 {[%clk 0:02:15.3]} 37. Kg2 {[%clk 0:00:03.1]}
37... Qd4 {[%clk 0:02:09.2]} 38. Qxd4 {[%clk 0:00:03.4]} 38... exd4 {[%clk
0:02:09.9]} 39. f4 {[%clk 0:00:04.9]} 39... Ra6 {[%clk 0:01:09.4]} 40. Bb3
{[%clk 0:00:05]} 40... Rb6 {[%clk 0:01:09.1]} 41. Bc4 {[%clk 0:00:06.1]} 41...
Rb4 {[%clk 0:01:08.7]} 42. Bb5 {[%clk 0:00:07.1]} 42... Rb3 {[%clk 0:01:06.1]}
43. Kf2 {[%clk 0:00:07.8]} 43... Kf6 {[%clk 0:01:05]} 44. g4 {[%clk 0:00:07.5]}
44... c5 {[%clk 0:01:05.4]} 45. Bc6 {[%clk 0:00:07.9]} 45... Rxh3 {[%clk
0:01:00.6]} 46. a5 {[%clk 0:00:08.9]} 46... Ra3 {[%clk 0:01:01.1]} 0-1

[Event "GrandPrix_29.05"]
[Site "Chess.com"]
[Date "2020.05.29"]
[Round "8"]
[White "GM_Levan_Pantsulaia"]
[Black "Magicmaster17"]
[Result "1-0"]
[WhiteElo "2651"]
[BlackElo "2458"]
[TimeControl "600+2"]
[EndTime "13:03:41 PDT"]
[Termination "GM_Levan_Pantsulaia won by resignation"]

1. Nf3 {[%clk 0:10:00.6]} 1... d5 {[%clk 0:10:00.8]} 2. g3 {[%clk 0:10:00.9]}
2... g6 {[%clk 0:10:02.4]} 3. Bg2 {[%clk 0:10:01.3]} 3... Bg7 {[%clk 0:10:03.5]}
4. O-O {[%clk 0:10:02.9]} 4... Nf6 {[%clk 0:09:56.3]} 5. b3 {[%clk 0:09:55.7]}
5... Ne4 {[%clk 0:09:20.3]} 6. c3 {[%clk 0:09:54.3]} 6... c5 {[%clk 0:09:18.4]}
7. Bb2 {[%clk 0:08:11.1]} 7... Nc6 {[%clk 0:09:13.1]} 8. d3 {[%clk 0:08:12]}
8... Nd6 {[%clk 0:09:13.6]} 9. Nbd2 {[%clk 0:08:13.1]} 9... O-O {[%clk
0:08:59.3]} 10. e4 {[%clk 0:08:13.9]} 10... d4 {[%clk 0:09:00.3]} 11. cxd4
{[%clk 0:08:14.2]} 11... Nb5 {[%clk 0:08:56.3]} 12. Rc1 {[%clk 0:07:26.1]} 12...
Nbxd4 {[%clk 0:07:39.6]} 13. Nxd4 {[%clk 0:06:44.3]} 13... Bxd4 {[%clk
0:07:39.4]} 14. Bxd4 {[%clk 0:06:45.6]} 14... Qxd4 {[%clk 0:07:38.8]} 15. Nf3
{[%clk 0:06:46.9]} 15... Qd6 {[%clk 0:07:39.5]} 16. Qd2 {[%clk 0:06:48.4]} 16...
Bg4 {[%clk 0:07:30.1]} 17. e5 {[%clk 0:05:42.2]} 17... Nxe5 {[%clk 0:03:15.9]}
18. Nxe5 {[%clk 0:05:40.3]} 18... Qxe5 {[%clk 0:03:17.8]} 19. Bxb7 {[%clk
0:05:40.7]} 19... Rad8 {[%clk 0:03:19.2]} 20. Rfe1 {[%clk 0:05:27.6]} 20... Qd6
{[%clk 0:03:08.4]} 21. Qg5 {[%clk 0:05:02.9]} 21... Be6 {[%clk 0:02:07.1]} 22.
Be4 {[%clk 0:02:21.8]} 22... Rc8 {[%clk 0:02:02.1]} 23. h4 {[%clk 0:02:17.8]}
23... Kg7 {[%clk 0:02:01.8]} 24. Rc2 {[%clk 0:02:05.4]} 24... Rc7 {[%clk
0:01:52.5]} 25. Rec1 {[%clk 0:02:04.8]} 25... Rfc8 {[%clk 0:01:53]} 26. h5
{[%clk 0:01:19.7]} 26... h6 {[%clk 0:01:53.7]} 27. Qe3 {[%clk 0:01:20.5]} 27...
g5 {[%clk 0:01:54.6]} 28. f4 {[%clk 0:01:21.4]} 28... f5 {[%clk 0:01:24.1]} 29.
Bg2 {[%clk 0:01:18.1]} 29... Kf6 {[%clk 0:01:10.6]} 30. d4 {[%clk 0:01:01.3]}
30... gxf4 {[%clk 0:00:53]} 31. gxf4 {[%clk 0:01:03.2]} 31... Rd8 {[%clk
0:00:19.3]} 32. dxc5 {[%clk 0:00:33.5]} 32... Qd4 {[%clk 0:00:20.3]} 33. Kf2
{[%clk 0:00:33.9]} 33... Bf7 {[%clk 0:00:17.6]} 34. Bf3 {[%clk 0:00:32.5]} 34...
e5 {[%clk 0:00:17.2]} 35. fxe5+ {[%clk 0:00:32.3]} 35... Qxe5 {[%clk 0:00:19.1]}
36. Qxh6+ {[%clk 0:00:32.3]} 36... Ke7 {[%clk 0:00:09.9]} 37. Re2 {[%clk
0:00:28.1]} 1-0

[Event "GrandPrix_29.05"]
[Site "Chess.com"]
[Date "2020.05.29"]
[Round "8"]
[White "KJakubowski"]
[Black "RaphaeI"]
[Result "1/2-1/2"]
[WhiteElo "2445"]
[BlackElo "2323"]
[TimeControl "600+2"]
[EndTime "13:03:47 PDT"]
[Termination "Game drawn by repetition"]

1. d4 {[%clk 0:09:51.9]} 1... Nf6 {[%clk 0:09:59.2]} 2. Nf3 {[%clk 0:09:50.4]}
2... d6 {[%clk 0:09:59.7]} 3. Bg5 {[%clk 0:09:27.3]} 3... Nbd7 {[%clk
0:09:59.9]} 4. Nbd2 {[%clk 0:09:27.1]} 4... h6 {[%clk 0:10:01.3]} 5. Bxf6 {[%clk
0:09:27.2]} 5... Nxf6 {[%clk 0:10:01.8]} 6. e4 {[%clk 0:09:27]} 6... g6 {[%clk
0:08:51]} 7. Bc4 {[%clk 0:08:28.3]} 7... Bg7 {[%clk 0:08:49.3]} 8. O-O {[%clk
0:08:09.1]} 8... O-O {[%clk 0:08:22.5]} 9. Re1 {[%clk 0:08:05.7]} 9... c6 {[%clk
0:07:25]} 10. Bb3 {[%clk 0:07:32.6]} 10... Qc7 {[%clk 0:06:44.9]} 11. h3 {[%clk
0:06:56]} 11... e5 {[%clk 0:06:09]} 12. dxe5 {[%clk 0:06:54.9]} 12... dxe5
{[%clk 0:06:10.9]} 13. Nc4 {[%clk 0:06:51.9]} 13... Rd8 {[%clk 0:06:11.9]} 14.
Qe2 {[%clk 0:06:50.9]} 14... Nh5 {[%clk 0:06:13]} 15. a4 {[%clk 0:06:43.4]}
15... Kh7 {[%clk 0:03:18.2]} 16. Red1 {[%clk 0:06:30.3]} 16... Be6 {[%clk
0:03:16]} 17. Qe3 {[%clk 0:06:20]} 17... b6 {[%clk 0:03:03]} 18. Kh2 {[%clk
0:05:58.3]} 18... Nf4 {[%clk 0:02:57.4]} 19. Ng1 {[%clk 0:05:43.8]} 19... Bf8
{[%clk 0:01:42.4]} 20. g3 {[%clk 0:05:30.7]} 20... Bc5 {[%clk 0:01:33.8]} 21.
Qf3 {[%clk 0:05:19.8]} 21... Nh5 {[%clk 0:01:34.8]} 22. Kg2 {[%clk 0:04:57.9]}
22... Kg7 {[%clk 0:01:33.5]} 23. Rxd8 {[%clk 0:04:40.8]} 23... Rxd8 {[%clk
0:01:33.8]} 24. Rd1 {[%clk 0:04:42.5]} 24... Rxd1 {[%clk 0:01:25.7]} 25. Qxd1
{[%clk 0:04:42.9]} 25... Nf6 {[%clk 0:01:27.6]} 26. Nd2 {[%clk 0:04:21.4]} 26...
Bxb3 {[%clk 0:01:20.7]} 27. cxb3 {[%clk 0:04:23.3]} 27... Qd6 {[%clk 0:01:18.5]}
28. Ngf3 {[%clk 0:04:18.2]} 28... Nxe4 {[%clk 0:01:14.4]} 29. Qe2 {[%clk
0:04:18.1]} 29... Nxd2 {[%clk 0:00:52.5]} 30. Nxd2 {[%clk 0:04:20]} 30... f5
{[%clk 0:00:51.5]} 31. Nc4 {[%clk 0:03:57]} 31... Qd5+ {[%clk 0:00:52.4]} 32.
Kg1 {[%clk 0:03:54.3]} 32... e4 {[%clk 0:00:53.5]} 33. Kf1 {[%clk 0:03:28.4]}
33... b5 {[%clk 0:00:45]} 34. axb5 {[%clk 0:03:24.3]} 34... cxb5 {[%clk
0:00:46.9]} 35. Nd2 {[%clk 0:03:10.8]} 35... Qd4 {[%clk 0:00:48]} 36. g4 {[%clk
0:03:01.5]} 36... a6 {[%clk 0:00:41.2]} 37. gxf5 {[%clk 0:03:01.4]} 37... gxf5
{[%clk 0:00:43.1]} 38. Nb1 {[%clk 0:02:48.3]} 38... Kf6 {[%clk 0:00:44.3]} 39.
Nc3 {[%clk 0:02:47.9]} 39... Ke5 {[%clk 0:00:37.8]} 40. Kg2 {[%clk 0:02:38.8]}
40... h5 {[%clk 0:00:23.2]} 41. Nd1 {[%clk 0:02:33.2]} 41... h4 {[%clk
0:00:16.7]} 42. Qh5 {[%clk 0:02:33.7]} 42... Qd2 {[%clk 0:00:13]} 43. Qe8+
{[%clk 0:02:26.3]} 43... Kf4 {[%clk 0:00:07.8]} 44. Qh5 {[%clk 0:02:01.5]} 44...
e3 {[%clk 0:00:08.9]} 45. Qxh4+ {[%clk 0:01:57.8]} 45... Ke5 {[%clk 0:00:10.2]}
46. Qh8+ {[%clk 0:01:42]} 46... Ke4 {[%clk 0:00:11.7]} 47. Qe8+ {[%clk
0:01:27.6]} 47... Kd3 {[%clk 0:00:13]} 48. Nxe3 {[%clk 0:01:28.1]} 48... Bxe3
{[%clk 0:00:02.7]} 49. Qxe3+ {[%clk 0:01:28.3]} 49... Qxe3 {[%clk 0:00:04]} 50.
fxe3 {[%clk 0:01:29.6]} 50... Kxe3 {[%clk 0:00:05.5]} 51. h4 {[%clk 0:01:30.6]}
51... Ke2 {[%clk 0:00:06.9]} 52. Kg3 {[%clk 0:01:29.6]} 52... Ke3 {[%clk
0:00:08.1]} 53. Kg2 {[%clk 0:01:18.1]} 53... Ke2 {[%clk 0:00:08.5]} 54. Kg3
{[%clk 0:01:18.5]} 54... Ke3 {[%clk 0:00:09.8]} 55. Kg2 {[%clk 0:01:19.5]}
1/2-1/2